[Event "45th FIDE Womens Olympiad 2024"]
[Site "Budapest"]
[Date "2024.09.12"]
[Round "2.107"]
[White "Demchenko, Svitlana"]
[Black "Jorquera Cabello, Valentina"]
[Result "0-1"]
[ECO "E71"]
[WhiteElo "2167"]
[BlackElo "1919"]
[Annotator "ChessBase"]
[PlyCount "140"]
[EventDate "2024.09.05"]
[EventType "team-tourn"]
[EventCountry "HUN"]
[SourceTitle "playchess.com"]
[Source "ChessBase"]
[SourceQuality "1"]
[WhiteTeam "Canada"]
[BlackTeam "Chile"]
[WhiteTeamCountry "CAN"]
[BlackTeamCountry "CHI"]
[TimeControl "40/5400+30:1800+30"]

1. d4 Nf6 2. c4 g6 3. Nc3 Bg7 4. e4 d6 5. h3 O-O 6. Be3 e5 7. d5 a5 8. Nge2 Na6 9. g4 Nc5 10. f3 Bd7 11. Qd2 Ne8 12. h4 f5 13. gxf5 gxf5 14. Bg5 Qc8 15. h5 Kh8 16. O-O-O f4 17. Bh4 a4 18. Kb1 Bf6 19. Bf2 b6 20. Ng1 Qa6 21. Nb5 Qa5 22. Qxa5 Rxa5 23. Be1 Ra8 24. Bh3 Bxb5 25. cxb5 Bd8 26. Bf5 Ng7 27. Bg4 Ne8 28. Ne2 Nf6 29. Bf5 Nfd7 30. Bc3 Bg5 31. Rdg1 h6 32. Rg2 Rxf5 33. exf5 Nf6 34. Rd1 Kh7 35. Rh2 Rf8 36. Bb4 Nfd7 37. Nc3 Rxf5 38. Bxc5 Nxc5 39. Ne4 Nxe4 40. fxe4 Rf7 41. Rf1 Rg7 42. Rh3 Kg8 43. Ra3 Kf7 44. Rxa4 Bh4 45. Rc4 Kf6 46. Rc3 Bg3 47. a4 Kg5 48. b4 Kxh5 49. a5 Kg4 50. a6 h5 51. a7 Rg8 52. Rxc7 Ra8 53. Kc2 Kh3 54. Ra1 f3 55. Kd3 Kg2 56. Rb7 f2 57. Ke2 h4 58. Rxb6 Rxa7 59. Rba6 Rb7 60. Rxd6 Rxb5 61. Rf6 Rxb4 62. Ke3 Rb3+ 63. Ke2 Rb4 64. Ke3 Bf4+ 65. Rxf4 exf4+ 66. Kd3 f1=Q+ 67. Rxf1 Kxf1 68. d6 h3 69. d7 Rb8 70. e5 h2 0-1

[Event "45th FIDE Womens Olympiad 2024"]
[Site "Budapest"]
[Date "2024.09.12"]
[Round "2.108"]
[White "Morales Flores, Monserrat"]
[Black "Golubeva, Oksana"]
[Result "0-1"]
[ECO "C07"]
[WhiteElo "1938"]
[BlackElo "2119"]
[Annotator "NA"]
[PlyCount "66"]
[EventDate "2024.09.05"]
[EventType "team-tourn"]
[EventCountry "HUN"]
[SourceTitle "playchess.com"]
[Source "ChessBase"]
[SourceQuality "1"]
[WhiteTeam "Chile"]
[BlackTeam "Canada"]
[WhiteTeamCountry "CHI"]
[BlackTeamCountry "CAN"]
[TimeControl "40/5400+30:1800+30"]

1. e4 e6 2. d4 d5 3. Nd2 c5 4. Ngf3 cxd4 5. Nxd4 Nf6 6. e5 Nfd7 7. N2f3 Nc6 8. Nxc6 bxc6 9. c3 a5 10. Be2 Ba6 11. O-O Be7 12. Bxa6 Rxa6 13. Qe2 Rb6 14. c4 Qb8 15. cxd5 cxd5 16. b3 O-O 17. Bd2 Bb4 18. Be3 Rb7 19. Bd4 Ba3 20. Rad1 Rc8 21. Rd3 Rbc7 22. Ng5 h6 23. Nh3 Rc1 24. Rdd1 R1c2 25. Qe3 Rxa2 26. Nf4 Rac2 27. Qg3 Nf8 28. Nh5 Ng6 29. f4 Rc1 30. Rxc1 Rxc1 31. Be3 Rxf1+ 32. Kxf1 Qxb3 33. h4 Qd1+ 0-1

[Event "45th FIDE Womens Olympiad 2024"]
[Site "Budapest"]
[Date "2024.09.12"]
[Round "2.109"]
[White "Lindiawati, Evi"]
[Black "Unuk, Laura"]
[Result "1/2-1/2"]
[ECO "C68"]
[WhiteElo "1940"]
[BlackElo "2316"]
[Annotator "ChessBase"]
[PlyCount "98"]
[EventDate "2024.09.05"]
[EventType "team-tourn"]
[EventCountry "HUN"]
[SourceTitle "playchess.com"]
[Source "ChessBase"]
[SourceQuality "1"]
[WhiteTeam "Indonesia"]
[BlackTeam "Slovenia"]
[WhiteTeamCountry "INA"]
[BlackTeamCountry "SLO"]
[TimeControl "40/5400+30:1800+30"]

1. e4 e5 2. Nf3 Nc6 3. Bb5 a6 4. Bxc6 dxc6 5. d4 exd4 6. Qxd4 Qxd4 7. Nxd4 c5 8. Ne2 Bd7 9. Nbc3 O-O-O 10. Be3 Bd6 11. O-O-O f5 12. exf5 Bxf5 13. Ng3 Bg6 14. Nge4 Nf6 15. Nxd6+ Rxd6 16. Bxc5 Rc6 17. Bd4 b5 18. Bxf6 Rxf6 19. f3 Re8 20. Rhe1 Rfe6 21. Rxe6 Rxe6 22. b3 c6 23. Rd2 Re1+ 24. Kb2 a5 25. Re2 Rg1 26. a4 b4 27. Ne4 Bxe4 28. fxe4 Kd7 29. c3 c5 30. Kc2 Kd6 31. Kd3 Rc1 32. cxb4 cxb4 33. Rc2 Rb1 34. Kc4 Ke5 35. Re2 h5 36. g3 g5 37. Kb5 Rxb3 38. Kxa5 Rb1 39. Kb5 b3 40. Kc4 h4 41. gxh4 gxh4 42. Kc3 h3 43. Re3 b2 44. Rxh3 Ra1 45. Kxb2 Rxa4 46. Rh5+ Ke6 47. Kc3 Rxe4 48. Kd3 Re5 49. Rxe5+ Kxe5 1/2-1/2

[Event "45th FIDE Womens Olympiad 2024"]
[Site "Budapest"]
[Date "2024.09.12"]
[Round "2.110"]
[White "Urh, Zala"]
[Black "Nugroho, Angel Ruth"]
[Result "1-0"]
[ECO "E05"]
[WhiteElo "2251"]
[BlackElo "1939"]
[Annotator "ChessBase"]
[PlyCount "151"]
[EventDate "2024.09.05"]
[EventType "team-tourn"]
[EventCountry "HUN"]
[SourceTitle "playchess.com"]
[Source "ChessBase"]
[SourceQuality "1"]
[WhiteTeam "Slovenia"]
[BlackTeam "Indonesia"]
[WhiteTeamCountry "SLO"]
[BlackTeamCountry "INA"]
[TimeControl "40/5400+30:1800+30"]

1. d4 d5 2. c4 e6 3. Nf3 Nf6 4. g3 Be7 5. Bg2 O-O 6. O-O dxc4 7. Qc2 a6 8. a4 Bd7 9. Qxc4 Bc6 10. Bg5 Bd5 11. Qc2 Be4 12. Qd1 h6 13. Bxf6 Bxf6 14. Nc3 Bxf3 15. Bxf3 c6 16. Qb3 Qc7 17. Rfd1 Rd8 18. Ne4 Nd7 19. a5 Rab8 20. h4 Be7 21. h5 Nf6 22. Nxf6+ Bxf6 23. e3 Rd7 24. Be4 Qd6 25. f4 Be7 26. Rdc1 Qb4 27. Qxb4 Bxb4 28. Rc4 Bd6 29. Kf2 f6 30. Kf3 e5 31. d5 c5 32. Bf5 Rc7 33. Be6+ Kf8 34. Ke4 Ke7 35. Kf5 Rf8 36. Ra3 Rb8 37. Rb3 b5 38. axb6 Rcb7 39. Ra4 Rxb6 40. Rba3 Ra8 41. Ra2 Kd8 42. Kg6 Bf8 43. fxe5 fxe5 44. Re4 Ra7 45. Rxe5 Be7 46. Rf5 Bf6 47. Rf2 Ke7 48. e4 Kd6 49. Rxf6 gxf6 50. Kxf6 c4 51. e5+ Kc5 52. d6 a5 53. Ra4 Rb4 54. Rxb4 axb4 55. d7 Ra8 56. Ke7 Kd4 57. Bxc4 Kxc4 58. d8=Q Rxd8 59. Kxd8 Kd5 60. Kd7 Kxe5 61. Kc6 Kf5 62. Kb5 b3 63. Kc4 Kg4 64. Kxb3 Kxh5 65. Kc3 Kg4 66. b4 h5 67. b5 Kxg3 68. b6 h4 69. b7 h3 70. b8=Q+ Kg2 71. Qb2+ Kg1 72. Qc1+ Kg2 73. Qd2+ Kg1 74. Qd1+ Kg2 75. Qg4+ Kh2 76. Kd3 1-0

[Event "45th FIDE Womens Olympiad 2024"]
[Site "Budapest"]
[Date "2024.09.12"]
[Round "2.111"]
[White "Yuliana, Evi"]
[Black "Vidic, Teja"]
[Result "1/2-1/2"]
[ECO "D24"]
[WhiteElo "1912"]
[BlackElo "2128"]
[Annotator "NA"]
[PlyCount "90"]
[EventDate "2024.09.05"]
[EventType "team-tourn"]
[EventCountry "HUN"]
[SourceTitle "playchess.com"]
[Source "ChessBase"]
[SourceQuality "1"]
[WhiteTeam "Indonesia"]
[BlackTeam "Slovenia"]
[WhiteTeamCountry "INA"]
[BlackTeamCountry "SLO"]
[TimeControl "40/5400+30:1800+30"]

1. d4 d5 2. c4 e6 3. Nf3 a6 4. Nc3 dxc4 5. a4 Nc6 6. e3 Nf6 7. Bxc4 Bb4 8. O-O O-O 9. Qe2 Qe7 10. Rd1 e5 11. Nd5 Nxd5 12. Bxd5 e4 13. Nd2 Bf5 14. Bxc6 bxc6 15. Nc4 Qg5 16. Ne5 Bd6 17. f4 exf3 18. Qxf3 Bxe5 19. dxe5 Qg6 20. Rd4 Rad8 21. Bd2 c5 22. Rxd8 Rxd8 23. Ba5 Be4 24. Qf2 Rd7 25. Bc3 h5 26. h3 Rd3 27. Re1 h4 28. Kh2 Bc6 29. a5 Qe4 30. Re2 Rd1 31. Rd2 Rxd2 32. Qxd2 Bd5 33. Qf2 g5 34. Qe2 Kf8 35. Kg1 Ke7 36. Kh2 Bc6 37. Qf2 Ke8 38. Qe2 Kd8 39. Kg1 Bd5 40. Kh2 Bc6 41. Kg1 Bd7 42. Kf2 Bc6 43. Kg1 Bd5 44. Kh2 Bc6 45. Kg1 Bd5 1/2-1/2

[Event "45th FIDE Womens Olympiad 2024"]
[Site "Budapest"]
[Date "2024.09.12"]
[Round "2.112"]
[White "Mihelic, Vesna"]
[Black "Adeline, Clementia"]
[Result "1/2-1/2"]
[ECO "B52"]
[WhiteElo "2069"]
[BlackElo "1550"]
[Annotator "NA"]
[PlyCount "80"]
[EventDate "2024.09.05"]
[EventType "team-tourn"]
[EventCountry "HUN"]
[SourceTitle "playchess.com"]
[Source "ChessBase"]
[SourceQuality "1"]
[WhiteTeam "Slovenia"]
[BlackTeam "Indonesia"]
[WhiteTeamCountry "SLO"]
[BlackTeamCountry "INA"]
[TimeControl "40/5400+30:1800+30"]

1. e4 c5 2. Nf3 d6 3. Bb5+ Bd7 4. Bxd7+ Qxd7 5. c4 Nc6 6. Nc3 g6 7. b3 Bg7 8. Bb2 e6 9. O-O Nge7 10. d3 O-O 11. Qd2 d5 12. exd5 exd5 13. Rad1 b6 14. Rfe1 Rad8 15. Qf4 Qf5 16. Qxf5 Nxf5 17. g4 Nfd4 18. Nxd4 Nxd4 19. Kg2 Ne6 20. Kg3 dxc4 21. dxc4 Rxd1 22. Nxd1 Bxb2 23. Nxb2 Rd8 24. Rd1 Rxd1 25. Nxd1 Nd4 26. Kf4 f6 27. Nc3 Kf7 28. h4 h6 29. h5 gxh5 30. gxh5 Ke6 31. Nd5 Kf7 32. Ke4 Ke6 33. Nf4+ Kd6 34. Nd5 Ke6 35. Nf4+ Kd6 36. Nd5 Ke6 37. Nc7+ Kd7 38. Nd5 Ke6 39. Nf4+ Kd6 40. Nd5 Ke6 1/2-1/2

[Event "45th FIDE Womens Olympiad 2024"]
[Site "Budapest"]
[Date "2024.09.12"]
[Round "2.113"]
[White "Linares Napoles, Oleiny"]
[Black "Tan, Li Ting"]
[Result "1/2-1/2"]
[ECO "A06"]
[WhiteElo "2201"]
[BlackElo "2037"]
[Annotator "ChessBase"]
[PlyCount "70"]
[EventDate "2024.09.05"]
[EventType "team-tourn"]
[EventCountry "HUN"]
[SourceTitle "playchess.com"]
[Source "ChessBase"]
[SourceQuality "1"]
[WhiteTeam "Cuba"]
[BlackTeam "Malaysia"]
[WhiteTeamCountry "CUB"]
[BlackTeamCountry "MAS"]
[TimeControl "40/5400+30:1800+30"]

1. Nf3 d5 2. b3 c5 3. e3 a6 4. c4 d4 5. exd4 cxd4 6. d3 Nc6 7. g3 e5 8. Bg2 Nf6 9. O-O Be7 10. Re1 Nd7 11. Ba3 O-O 12. Bxe7 Qxe7 13. a3 a5 14. Nbd2 Nc5 15. Ne4 Na6 16. Qe2 Bd7 17. Rac1 f5 18. Ned2 Rae8 19. h4 h6 20. Ra1 g6 21. Qd1 Qf6 22. Qb1 Kg7 23. Ra2 Qd6 24. Ra1 Re7 25. Nh2 Rfe8 26. h5 gxh5 27. Nhf3 Rf8 28. Nh4 Qf6 29. Ra2 Qg5 30. Ndf3 Qf6 31. Rae2 Rfe8 32. Nd2 Qg5 33. Ndf3 Qf6 34. Nd2 Qg5 35. Ndf3 Qf6 1/2-1/2

[Event "45th FIDE Womens Olympiad 2024"]
[Site "Budapest"]
[Date "2024.09.12"]
[Round "2.114"]
[White "Azhar, Puteri Munajjah Az-Z"]
[Black "Miranda Llanes, Yerisbel"]
[Result "0-1"]
[ECO "E48"]
[WhiteElo "2014"]
[BlackElo "2294"]
[Annotator "ChessBase"]
[PlyCount "106"]
[EventDate "2024.09.05"]
[EventType "team-tourn"]
[EventCountry "HUN"]
[SourceTitle "playchess.com"]
[Source "ChessBase"]
[SourceQuality "1"]
[WhiteTeam "Malaysia"]
[BlackTeam "Cuba"]
[WhiteTeamCountry "MAS"]
[BlackTeamCountry "CUB"]
[TimeControl "40/5400+30:1800+30"]

1. d4 Nf6 2. c4 e6 3. Nc3 Bb4 4. e3 O-O 5. Bd3 d5 6. Nge2 c5 7. O-O cxd4 8. exd4 b6 9. Bg5 Be7 10. Rc1 Bb7 11. Bxf6 Bxf6 12. cxd5 exd5 13. Qb3 Qd7 14. Rcd1 Na6 15. Ng3 Nc7 16. Nh5 Be7 17. Rfe1 g6 18. Nf4 Bd6 19. Nh3 Rfe8 20. Ng5 Qg4 21. Nf3 Ne6 22. h3 Qh5 23. Bb5 Red8 24. Ne2 Rac8 25. Ng3 Qh6 26. Ne5 Bxe5 27. Rxe5 Qf4 28. Qd3 Qf6 29. Ree1 Nf4 30. Qe3 a6 31. Ba4 b5 32. Bb3 a5 33. Qe7 Qxe7 34. Rxe7 Ba6 35. a4 b4 36. Re3 Kf8 37. f3 Re8 38. Re5 f6 39. Rxe8+ Kxe8 40. Nf1 Kd7 41. g3 Nd3 42. Rb1 Kd6 43. Ne3 Bc4 44. Bc2 Re8 45. Nf1 Re2 46. Bxd3 Bxd3 47. Rd1 Bc2 48. Rd2 Rxd2 49. Nxd2 Bxa4 50. b3 Bd7 51. g4 a4 52. bxa4 Bxa4 53. Kf2 Bc2 0-1

[Event "45th FIDE Womens Olympiad 2024"]
[Site "Budapest"]
[Date "2024.09.12"]
[Round "2.115"]
[White "Forgas Moreno, Yaniela"]
[Black "Azhar, Puteri Rifqah Fahada"]
[Result "1-0"]
[ECO "C10"]
[WhiteElo "2203"]
[BlackElo "1947"]
[Annotator "ChessBase"]
[PlyCount "59"]
[EventDate "2024.09.05"]
[EventType "team-tourn"]
[EventCountry "HUN"]
[SourceTitle "playchess.com"]
[Source "ChessBase"]
[SourceQuality "1"]
[WhiteTeam "Cuba"]
[BlackTeam "Malaysia"]
[WhiteTeamCountry "CUB"]
[BlackTeamCountry "MAS"]
[TimeControl "40/5400+30:1800+30"]

1. e4 e6 2. d4 d5 3. Nc3 dxe4 4. Nxe4 Be7 5. Nf3 Nf6 6. Bd3 Nbd7 7. O-O Nxe4 8. Bxe4 Nf6 9. Bd3 Bd7 10. Ne5 c6 11. Qf3 Qc7 12. Re1 h6 13. c4 g5 14. Bd2 Rg8 15. d5 c5 16. Nxd7 Qxd7 17. dxe6 fxe6 18. Rad1 O-O-O 19. Ba5 Rdf8 20. Bf5 g4 21. Qe2 Qc6 22. Qxe6+ Qxe6 23. Bxe6+ Kb8 24. Bxg8 Nxg8 25. Rd7 Bf6 26. Bc3 Bxc3 27. bxc3 Kc8 28. Rh7 a6 29. Re5 b6 30. Re6 1-0

[Event "45th FIDE Womens Olympiad 2024"]
[Site "Budapest"]
[Date "2024.09.12"]
[Round "2.116"]
[White "Nithyalakshmi, Sivanesan"]
[Black "Hernandez Gil, Ineymig"]
[Result "0-1"]
[ECO "B23"]
[WhiteElo "1912"]
[BlackElo "2160"]
[Annotator "ChessBase"]
[PlyCount "86"]
[EventDate "2024.09.05"]
[EventType "team-tourn"]
[EventCountry "HUN"]
[SourceTitle "playchess.com"]
[Source "ChessBase"]
[SourceQuality "1"]
[WhiteTeam "Malaysia"]
[BlackTeam "Cuba"]
[WhiteTeamCountry "MAS"]
[BlackTeamCountry "CUB"]
[TimeControl "40/5400+30:1800+30"]

1. e4 c5 2. Nc3 e6 3. f4 d5 4. exd5 exd5 5. Bb5+ Nc6 6. Nf3 Nf6 7. O-O Be7 8. Ne5 Qb6 9. Qf3 O-O 10. Bxc6 bxc6 11. Kh1 Bd6 12. d3 Qc7 13. Na4 Re8 14. Qf2 c4 15. dxc4 Ne4 16. Qd4 c5 17. Qxd5 Bb7 18. Qd1 Rad8 19. Nd3 Qc6 20. Qg4 Qxa4 21. b3 Qc6 22. Bb2 f6 23. Rf3 Bf8 24. h4 Qc8 25. f5 Bd6 26. Kg1 Kh8 27. Re1 Nd2 28. Rfe3 Rxe3 29. Rxe3 Re8 30. Kf2 Rxe3 31. Kxe3 Ne4 32. Nf4 Bxf4+ 33. Qxf4 h6 34. g4 Qe8 35. Kd3 Qd7+ 36. Ke2 Kh7 37. a4 Qe7 38. Kd3 Qd7+ 39. Ke2 Qe8 40. Kd3 Qd8+ 41. Ke2 h5 42. gxh5 Qe8 43. Kd3 Qxh5 0-1

[Event "45th FIDE Womens Olympiad 2024"]
[Site "Budapest"]
[Date "2024.09.12"]
[Round "2.117"]
[White "Nassr, Lina"]
[Black "Newrkla, Katharina"]
[Result "1/2-1/2"]
[ECO "B07"]
[WhiteElo "2010"]
[BlackElo "2208"]
[Annotator "ChessBase"]
[PlyCount "90"]
[EventDate "2024.09.05"]
[EventType "team-tourn"]
[EventCountry "HUN"]
[SourceTitle "playchess.com"]
[Source "ChessBase"]
[SourceQuality "1"]
[WhiteTeam "Algeria"]
[BlackTeam "Austria"]
[WhiteTeamCountry "ALG"]
[BlackTeamCountry "AUT"]
[TimeControl "40/5400+30:1800+30"]

1. d4 Nf6 2. Nf3 g6 3. Nbd2 Bg7 4. e4 d6 5. Bd3 O-O 6. O-O Nc6 7. c3 e5 8. dxe5 Nxe5 9. Nxe5 dxe5 10. Nc4 Nh5 11. Ne3 Nf4 12. Bc4 c6 13. a4 Qe7 14. Qc2 h5 15. b4 Rd8 16. Ba3 Qg5 17. Rad1 Bh3 18. f3 h4 19. Kh1 Be6 20. Bc1 Qe7 21. Rd5 Rd7 22. Rxd7 Rd8 23. Rfd1 Rxd7 24. Rd2 Rxd2 25. Bxd2 Bxc4 26. Nxc4 Qe6 27. Nb2 Qa2 28. Be3 a6 29. Qd2 Ne6 30. h3 Bf6 31. a5 Nf4 32. Kg1 Qb1+ 33. Nd1 Nd3 34. Kh2 Be7 35. Nf2 Nxf2 36. Bxf2 Qf1 37. Bb6 Kg7 38. Be3 Qc4 39. Kg1 Qe6 40. Bg5 Bxg5 41. Qxg5 Qf6 42. Qd2 Qe7 43. Qd3 Qg5 44. Kf2 Qg3+ 45. Kf1 Qg5 1/2-1/2

[Event "45th FIDE Womens Olympiad 2024"]
[Site "Budapest"]
[Date "2024.09.12"]
[Round "2.118"]
[White "Exler, Veronika"]
[Black "Latreche, Sabrina"]
[Result "1/2-1/2"]
[ECO "D36"]
[WhiteElo "2176"]
[BlackElo "2030"]
[Annotator "ChessBase"]
[PlyCount "78"]
[EventDate "2024.09.05"]
[EventType "team-tourn"]
[EventCountry "HUN"]
[SourceTitle "playchess.com"]
[Source "ChessBase"]
[SourceQuality "1"]
[WhiteTeam "Austria"]
[BlackTeam "Algeria"]
[WhiteTeamCountry "AUT"]
[BlackTeamCountry "ALG"]
[TimeControl "40/5400+30:1800+30"]

1. d4 Nf6 2. c4 e6 3. Nc3 d5 4. cxd5 exd5 5. Bg5 Be7 6. e3 c6 7. Qc2 h6 8. Bh4 O-O 9. Bd3 Re8 10. Nge2 Nbd7 11. O-O Nf8 12. f3 N6h7 13. Bxe7 Rxe7 14. e4 dxe4 15. fxe4 Bg4 16. h3 Bxe2 17. Nxe2 Qb6 18. Kh1 Rd8 19. Rad1 Nf6 20. Rxf6 gxf6 21. Qd2 Rxd4 22. Nxd4 Qxd4 23. Qxh6 Qxb2 24. Rf1 Re6 25. Rf5 Qxa2 26. e5 fxe5 27. Rg5+ Ng6 28. Bxg6 Rxg6 29. Rxg6+ fxg6 30. Qxg6+ Kf8 31. Qd6+ Kf7 32. Qxe5 Qe6 33. Qc7+ Qe7 34. Qf4+ Kg6 35. Qg4+ Qg5 36. Qe6+ Qf6 37. Qg4+ Qg5 38. Qe6+ Qf6 39. Qg4+ Qg5 1/2-1/2

[Event "45th FIDE Womens Olympiad 2024"]
[Site "Budapest"]
[Date "2024.09.12"]
[Round "2.119"]
[White "Nassr, Rania"]
[Black "Schloffer, Jasmin-Denise"]
[Result "1/2-1/2"]
[ECO "A30"]
[WhiteElo "1866"]
[BlackElo "2168"]
[Annotator "ChessBase"]
[PlyCount "92"]
[EventDate "2024.09.05"]
[EventType "team-tourn"]
[EventCountry "HUN"]
[SourceTitle "playchess.com"]
[Source "ChessBase"]
[SourceQuality "1"]
[WhiteTeam "Algeria"]
[BlackTeam "Austria"]
[WhiteTeamCountry "ALG"]
[BlackTeamCountry "AUT"]
[TimeControl "40/5400+30:1800+30"]

1. Nf3 Nf6 2. b3 e6 3. Bb2 b6 4. g3 Bb7 5. Bg2 Be7 6. O-O O-O 7. c4 c5 8. Nc3 d6 9. e3 Nbd7 10. d4 a6 11. Qe2 Qc7 12. e4 cxd4 13. Nxd4 Rfe8 14. Rac1 Rac8 15. Rfe1 Qb8 16. h3 h6 17. Rcd1 Nh7 18. Qc2 Nhf6 19. Qb1 Qa8 20. Re2 Nc5 21. Rde1 Bf8 22. Kh2 Red8 23. Rd1 d5 24. cxd5 exd5 25. exd5 Nxd5 26. Nxd5 Bxd5 27. Bxd5 Qxd5 28. Rde1 Rd7 29. Re8 Rxe8 30. Rxe8 Rd8 31. Rxd8 Qxd8 32. Qf5 Qe7 33. Qg4 Qe1 34. Qe2 Qxe2 35. Nxe2 Ne6 36. Kg2 Bc5 37. f4 Kf8 38. Kf3 g6 39. Ke4 Ke7 40. g4 Kd6 41. Be5+ Kd7 42. Nc3 Bg1 43. Ne2 Bc5 44. Nc3 Bg1 45. Ne2 Bc5 46. Nc3 Bg1 1/2-1/2

[Event "45th FIDE Womens Olympiad 2024"]
[Site "Budapest"]
[Date "2024.09.12"]
[Round "2.120"]
[White "Hapala, Elisabeth"]
[Black "Djerroud, Chahrazed"]
[Result "1-0"]
[ECO "C78"]
[WhiteElo "2113"]
[BlackElo "1910"]
[Annotator "NA"]
[PlyCount "87"]
[EventDate "2024.09.05"]
[EventType "team-tourn"]
[EventCountry "HUN"]
[SourceTitle "playchess.com"]
[Source "ChessBase"]
[SourceQuality "1"]
[WhiteTeam "Austria"]
[BlackTeam "Algeria"]
[WhiteTeamCountry "AUT"]
[BlackTeamCountry "ALG"]
[TimeControl "40/5400+30:1800+30"]

1. e4 e5 2. Nf3 Nc6 3. Bb5 a6 4. Ba4 Nf6 5. O-O b5 6. Bb3 Bc5 7. c3 d6 8. d4 Bb6 9. Be3 O-O 10. Nbd2 Bg4 11. h3 Bh5 12. dxe5 dxe5 13. Qe2 Bxe3 14. Qxe3 h6 15. Rfd1 Qe7 16. g4 Bg6 17. Bd5 Nxd5 18. exd5 Na5 19. Qxe5 Qxe5 20. Nxe5 Bc2 21. Rdc1 Bh7 22. b4 Nb7 23. Nb3 Rfd8 24. Nc6 Rd6 25. a4 Re8 26. axb5 axb5 27. Ra7 Nd8 28. Rxc7 Kf8 29. Nbd4 Rxd5 30. Nxd8 Rexd8 31. Ra1 h5 32. Raa7 Bg8 33. Rab7 hxg4 34. hxg4 Rg5 35. f3 g6 36. Rxb5 Rxb5 37. Nxb5 Rd2 38. Nd4 f6 39. b5 Bd5 40. Rd7 Rd1+ 41. Kf2 Bb3 42. Ne6+ Ke8 43. Rxd1 Bxd1 44. b6 1-0

[Event "45th FIDE Womens Olympiad 2024"]
[Site "Budapest"]
[Date "2024.09.12"]
[Round "2.121"]
[White "Mihok-Juhasz, Barbara"]
[Black "Ptacnikova, Lenka"]
[Result "1-0"]
[ECO "B48"]
[WhiteElo "2193"]
[BlackElo "2065"]
[Annotator "ChessBase"]
[PlyCount "109"]
[EventDate "2024.09.05"]
[EventType "team-tourn"]
[EventCountry "HUN"]
[SourceTitle "playchess.com"]
[Source "ChessBase"]
[SourceQuality "1"]
[WhiteTeam "Hungary B"]
[BlackTeam "Iceland"]
[WhiteTeamCountry "HUN"]
[BlackTeamCountry "ISL"]
[TimeControl "40/5400+30:1800+30"]

1. e4 c5 2. Nf3 e6 3. d4 cxd4 4. Nxd4 Nc6 5. Nc3 Qc7 6. Be3 a6 7. g4 Nxd4 8. Qxd4 b5 9. O-O-O Bb7 10. Kb1 Rc8 11. Bf4 d6 12. Bxd6 Qxd6 13. Qxd6 Bxd6 14. Rxd6 Nf6 15. f3 Ke7 16. Rd1 Nd7 17. a3 Ne5 18. Be2 Nc4 19. Bxc4 Rxc4 20. Rd2 Rd8 21. Rxd8 Kxd8 22. Rd1+ Ke7 23. Rd3 f5 24. gxf5 exf5 25. exf5 Rf4 26. Re3+ Kd7 27. Ne4 Rxf5 28. Rd3+ Kc7 29. Rc3+ Bc6 30. b4 Kb6 31. Kb2 Rh5 32. Nd6 Rxh2 33. Nc8+ Kc7 34. Ne7 Rh6 35. Nf5 Rf6 36. Nxg7 Kd7 37. f4 Rxf4 38. Ne6 Rf6 39. Nc5+ Kd6 40. Rh3 h6 41. Nxa6 Ke5 42. Nb8 Kf4 43. Nxc6 Rxc6 44. Rh5 Rb6 45. Kb3 Kg4 46. Rh1 h5 47. c4 h4 48. cxb5 Rxb5 49. a4 Rb8 50. b5 h3 51. Kb4 Kg3 52. a5 Kg2 53. Ra1 h2 54. a6 Ra8 55. Ka5 1-0

[Event "45th FIDE Womens Olympiad 2024"]
[Site "Budapest"]
[Date "2024.09.12"]
[Round "2.122"]
[White "Johannsdottir, Johanna Bjorg"]
[Black "Lakos, Nikoletta"]
[Result "0-1"]
[ECO "B33"]
[WhiteElo "2013"]
[BlackElo "2192"]
[Annotator "ChessBase"]
[PlyCount "88"]
[EventDate "2024.09.05"]
[EventType "team-tourn"]
[EventCountry "HUN"]
[SourceTitle "playchess.com"]
[Source "ChessBase"]
[SourceQuality "1"]
[WhiteTeam "Iceland"]
[BlackTeam "Hungary B"]
[WhiteTeamCountry "ISL"]
[TimeControl "40/5400+30:1800+30"]

1. e4 c5 2. Nf3 Nc6 3. d4 cxd4 4. Nxd4 Qb6 5. Nb3 Nf6 6. Nc3 e6 7. Be3 Qc7 8. Bc5 Bxc5 9. Nxc5 O-O 10. Be2 a6 11. O-O b5 12. a3 Ne5 13. Nd3 Nc4 14. Re1 Nxb2 15. Nxb5 axb5 16. Nxb2 Nxe4 17. Bd3 Nc3 18. Bxh7+ Kxh7 19. Qh5+ Kg8 20. Re3 Nd5 21. Rh3 f5 22. Qh7+ Kf7 23. Qh5+ Ke7 24. Qg5+ Kf7 25. Qh5+ Ke7 26. Qg5+ Nf6 27. Nd3 Bb7 28. Rh7 Rf7 29. Rxg7 Qc3 30. Rd1 Raf8 31. Nf4 Qxc2 32. Rf1 Ke8 33. Rxf7 Rxf7 34. Ng6 Qe4 35. Qg3 Qxg2+ 36. Qxg2 Bxg2 37. Kxg2 Rg7 38. Rb1 Rxg6+ 39. Kf3 Rh6 40. Kg2 Rg6+ 41. Kf3 Rg4 42. Rxb5 Ra4 43. Rb3 Ke7 44. Re3 Ng4 0-1

[Event "45th FIDE Womens Olympiad 2024"]
[Site "Budapest"]
[Date "2024.09.12"]
[Round "2.123"]
[White "Karacsonyi, Kata"]
[Black "Thorsteinsdottir, Hallgerdur"]
[Result "1/2-1/2"]
[ECO "B11"]
[WhiteElo "2233"]
[BlackElo "1938"]
[Annotator "ChessBase"]
[PlyCount "61"]
[EventDate "2024.09.05"]
[EventType "team-tourn"]
[EventCountry "HUN"]
[SourceTitle "playchess.com"]
[Source "ChessBase"]
[SourceQuality "1"]
[WhiteTeam "Hungary B"]
[BlackTeam "Iceland"]
[WhiteTeamCountry "HUN"]
[BlackTeamCountry "ISL"]
[TimeControl "40/5400+30:1800+30"]

1. e4 c6 2. Nf3 d5 3. Nc3 Bg4 4. h3 Bxf3 5. Qxf3 e6 6. Be2 Nf6 7. O-O Be7 8. e5 Nfd7 9. Qg3 O-O 10. d4 Kh8 11. Bg4 c5 12. Ne2 cxd4 13. Nxd4 Nc6 14. Nxc6 bxc6 15. f4 Qb6+ 16. Kh1 Nc5 17. Bf3 f6 18. b3 f5 19. Be3 Qb4 20. Bxc5 Bxc5 21. c4 Rac8 22. Be2 Qd2 23. Qd3 Qxd3 24. Bxd3 a5 25. cxd5 cxd5 26. Bb5 Rf7 27. Rac1 Rfc7 28. Ba6 Ra8 29. Bb5 Rac8 30. Ba6 Ra8 31. Bb5 1/2-1/2

[Event "45th FIDE Womens Olympiad 2024"]
[Site "Budapest"]
[Date "2024.09.12"]
[Round "2.124"]
[White "Helgadottir, Idunn"]
[Black "Terbe, Zsuzsanna"]
[Result "0-1"]
[ECO "D35"]
[WhiteElo "1837"]
[BlackElo "2168"]
[Annotator "ChessBase"]
[PlyCount "120"]
[EventDate "2024.09.05"]
[EventType "team-tourn"]
[EventCountry "HUN"]
[SourceTitle "playchess.com"]
[Source "ChessBase"]
[SourceQuality "1"]
[WhiteTeam "Iceland"]
[BlackTeam "Hungary B"]
[WhiteTeamCountry "ISL"]
[BlackTeamCountry "HUN"]
[TimeControl "40/5400+30:1800+30"]

1. d4 d5 2. c4 e6 3. Nc3 c6 4. Nf3 Nf6 5. cxd5 exd5 6. Bg5 Be7 7. e3 Bf5 8. Bd3 Bxd3 9. Qxd3 Nbd7 10. O-O O-O 11. a3 a5 12. Rab1 Ne4 13. Bxe7 Qxe7 14. Qc2 Nd6 15. Nd2 Rfe8 16. b4 axb4 17. axb4 b5 18. Ra1 Nb6 19. Nb3 Nbc4 20. Qe2 Nf5 21. Nc5 g6 22. Qd3 Nh4 23. Ne2 Nf5 24. Nf4 Nfd6 25. Rfe1 Ne4 26. Nxe4 dxe4 27. Qc3 Qd6 28. Red1 Red8 29. h4 h5 30. Qc2 Qe7 31. Rxa8 Rxa8 32. g3 Kh7 33. d5 cxd5 34. Nxd5 Qe5 35. Qxe4 Qxe4 36. Nf6+ Kg7 37. Nxe4 Ra4 38. Rb1 Na3 39. Rb2 Nc4 40. Rb3 Ra1+ 41. Kg2 Rc1 42. Nc5 Rc2 43. e4 Ne5 44. Kf1 Rc1+ 45. Ke2 Rc4 46. Ke3 Ng4+ 47. Kf3 Ne5+ 48. Kf4 f6 49. Nb7 Rd4 50. Nc5 Rc4 51. f3 Nc6 52. Na6 Nd4 53. Rd3 Kf7 54. g4 hxg4 55. fxg4 Nc6 56. Rb3 Nd4 57. Rd3 Nc6 58. Rb3 Nd4 59. Rb2 Rc3 60. Nc5 Rf3# 0-1